{"text_format":"1","workbook":"xlsx","n_sheets":8,"sheets":["الرحلات_المعتمرين","الرحلات","فواتير","تعريفات","التقرير","الدفعات","Invoice","Data"],"not_rendered":{"charts":0,"images":0,"macros":1,"external_links":0,"defined_names":16,"comments":0,"pivot_tables":0},"unopened":[],"bounds":{"document_bytes":16777216,"sheet_cells":100000,"rows_first":2000,"rows_last":500,"rows_between":2000,"halvings":0,"cell_chars":16384,"cell_head_chars":4096},"cells_cut":0,"cells_raw":0,"read":"whole","date_system":"1900"}

{"sheet":"الرحلات_المعتمرين","index":0,"n_rows":45,"n_cols":16,"rows_kept":45,"cut":false,"hidden":true,"merged":[]}
[]
["رقم الرحلة ","تاريخ الرحلة ","نوع الرحلة ","رقم الحافلة ","اسم المرشد ","فندق المدينة ","فندق مكة ","م","اسم المعتمر","الجنسية ","رقم الهوية ","رقم الجواز ","نوع الخدمة ","جنس المعتمر","ملاحظات ","نوع التسكين"]
[106,"31-12-2019","طيران ",2,"مجموعة ايناس الرام ","المركزية","دار الايمان جراند ",1,"ايناس عبدالحليم عيسى مصلح",null,944573112,3846600,"ال","اياب",null,"غرفه رباعية"]
[106,"31-12-2019","طيران ",2,"مجموعة ايناس الرام ","المركزية","دار الايمان جراند ",2,"عيسى عبدالحليم عيسى غزاونه",null,850141037,4123059,"لي","ل",null,"غرفه رباعية"]
[106,"31-12-2019","طيران ",2,"مجموعة ايناس الرام ","المركزية","دار الايمان جراند ",3,"هيا عبدالحليم عيسى حموده",null,"Y","T339109","L","L",null,"غرفه رباعية"]
[106,"31-12-2019","طيران ",2,"مجموعة ايناس الرام ","المركزية","دار الايمان جراند ",4,"منتهى عبدالحليم عيسى حجازي",null,1,"T1059019","ن","ن",null,"غرفه رباعية"]
[106,"31-12-2019","طيران ",2,"مجموعة ايناس الرام ","المركزية","دار الايمان جراند ",5,"ايه مازن مصطفى غزاونه",null,853896421,4976725,"م","م",null,"غرفه رباعية"]
[106,"31-12-2019","طيران ",2,"مجموعة ايناس الرام ","المركزية","دار الايمان جراند ",6,"باسل انور شفيق عبد الحق",null,403355944,4556495,"ف","ف",null,"غرفه رباعية"]
[106,"31-12-2019","طيران ",2,"مجموعة ايناس الرام ","المركزية","دار الايمان جراند ",7,"هيام ابراهيم حمدان غزاونه ",null,null,"T357380","ف","ف",null,"غرفه رباعية"]
[106,"31-12-2019","طيران ",2,"مجموعة ايناس الرام ","المركزية","دار الايمان جراند ",8,"امل اراهيم حمدان خطاب",null,null,"T249955","ف","ف",null,"غرفه رباعية"]
[106,"31-12-2019","طيران ",2,"مجموعة ايناس الرام ","المركزية","دار الايمان جراند ",9,"مريم عيسى عبد الجبار ابو زاهريه",null,996303038,3997428,"ف","ف",null,"غرفه رباعية"]
[105,"31-12-2019","طيران ",1,"مجموعة الكومي ","المركزية","دار الايمان جراند",1,"حمزه جمال محمد الكومي ",null,427415401,4849289,"ف","ف",null,"غرفه رباعية"]
[105,"31-12-2019","طيران ",1,"مجموعة الكومي ","المركزية","دار الايمان جراند",2,"محمد جمال محمد الكومي ",null,430747643,4849286,"ف","ف",null,"غرفه رباعية"]
[105,"31-12-2019","طيران ",1,"مجموعة الكومي ","المركزية","دار الايمان جراند",3,"ملاك جمال محمد الكومي ",null,408681732,4847895,"ف","ف",null,"غرفه رباعية"]
[105,"31-12-2019","طيران ",1,"مجموعة الكومي ","المركزية","دار الايمان جراند",4,"اسامه جمال محمد الكومي ",null,420642878,4848455,"ف","ف",null,"غرفه رباعية"]
[105,"31-12-2019","طيران ",1,"مجموعة الكومي ","المركزية","دار الايمان جراند",5,"عبير محمد شاكر احمد الكومي ",null,999847551,4827804,"ف","ف",null,"غرفه رباعية"]
[105,"31-12-2019","طيران ",1,"مجموعة الكومي ","المركزية","دار الايمان جراند",6,"جمال محمد حسن الكومي ",null,943209619,3882638,"ف","ف",null,"غرفه رباعية"]
[105,"31-12-2019","طيران ",1,"مجموعة الكومي ","المركزية","دار الايمان جراند",1,"اية جمال محمد الكومي ",null,406690594,4847004,"ف","ف",null,"غرفه رباعية"]
[105,"31-12-2019","طيران ",1,"مجموعة الكومي ","المركزية","دار الايمان جراند",8,"ابراهيم جمال محمد الكومي ",null,420642886,4848417,"ف","ف",null,"غرفه رباعية"]
[101,"24-12-2019","طيران ",1,"دار خراز","المركزية ","الجراند ",1,"نمر علي نمر خليل ",null,904708666,4141349,"ف","ف",null,"غرفة ثنائية"]
[101,"24-12-2019","طيران ",1,"دار خراز","المركزية ","الجراند ",2,"انشراح جبر سليمان خليل ",null,925062259,4430252,"ف","ف",null,"غرفة ثنائية"]
[101,"24-12-2019","طيران ",1,"دار خراز","المركزية ","الجراند ",3,"نصر الله علي عبد الغني اقطش",null,911773208,4339622,"ف","ف",null,"غرفة ثنائية"]
[101,"24-12-2019","طيران ",1,"دار خراز","المركزية ","الجراند ",4,"عزيزه جودت عبد العزيز اقطش ",null,907129860,4941012,"ف","ف",null,"غرفة ثنائية"]
[101,"24-12-2019","طيران ",1,"دار خراز","المركزية ","الجراند ",5,"سعيد حمدي محمد ابو مياله ",null,null,"T303744","ف","ف",null,"التاشيرة فقط "]
[101,"24-12-2019","طيران ",1,"دار خراز","المركزية ","الجراند ",6,"عبد الرحمن حمدي محمد ابو مياله ",null,null,"T1070336","ف","ف",null,"غرفه رباعية"]
[101,"24-12-2019","طيران ",1,"دار خراز","المركزية ","الجراند ",7,"طه حمي محمد ابو مياله ",null,null,"T1070416","ف","ف",null,"غرفه رباعية"]
[101,"24-12-2019","طيران ",1,"دار خراز","المركزية ","الجراند ",8,"جميله محمود علي ابو زعيتر",null,null,"T440341","ف","ف",null,"غرفه رباعية"]
[101,"24-12-2019","طيران ",1,"دار خراز","المركزية ","الجراند ",9,"نجمه عيسى موسى ابو مياله ",null,982063836,4849536,"ف","ف",null,"غرفه رباعية"]
[101,"24-12-2019","طيران ",1,"دار خراز","المركزية ","الجراند ",10,"محي الدين حسن محمد عطاري ",null,921602488,3731908,"ف","ف",null,"غرفه رباعية"]
[101,"24-12-2019","طيران ",1,"دار خراز","المركزية ","الجراند ",11,"محاسن حسن محمد عطاري ",null,903909281,4151305,"ف","ف",null,"غرفه رباعية"]
[101,"24-12-2019","طيران ",1,"دار خراز","المركزية ","الجراند ",12,"نجمه حسن محمد كايد ",null,953759578,4154303,"ف","ف",null,"غرفه رباعية"]
[101,"24-12-2019","طيران ",1,"دار خراز","المركزية ","الجراند ",13,"هاله حسن محمد عطاري ",null,null,"T365967","ف","ف",null,"غرفه رباعية"]
[101,"24-12-2019","طيران ",1,"دار خراز","المركزية ","الجراند ",14,"محمد يوسف نجيب عوده ",null,936548627,4343806,"ف","ف",null,"غرفه رباعية"]
[101,"24-12-2019","طيران ",1,"دار خراز","المركزية ","الجراند ",15,"دلال هلال حسين بني شمسه ",null,967807769,4941998,"ف","ف",null,"غرفه رباعية"]
[101,"24-12-2019","طيران ",1,"دار خراز","المركزية ","الجراند ",16,"ضحى منذر عبد اللطيف بني شمسه ",null,406414458,4941997,"ف","ف",null,"غرفه رباعية"]
[101,"24-12-2019","طيران ",1,"دار خراز","المركزية ","الجراند ",17,"هلا منذر عبد اللطيف بني شمسه ",null,422003848,49411999,"ف","ف",null,"غرفه رباعية"]
[101,"24-12-2019","طيران ",1,"دار خراز","المركزية ","الجراند ",18,"منذر عبد اللطيف حسين بني شمسه ",null,97470333,4940696,"ف","ق",null,"غرفه رباعية"]
[101,"24-12-2019","طيران ",1,"دار خراز","المركزية ","الجراند ",19,"حامد سامر عثمان شرفه ",null,854787777,3948460,"ف","ف",null,"غرفه رباعية"]
[101,"24-12-2019","طيران ",1,"دار خراز","المركزية ","الجراند ",20,"عميد عامر وجيه عفونه ",null,859894099,3758369,"ف","ف",null,"غرفة ثلاثية"]
[101,"24-12-2019","طيران ",1,"دار خراز","المركزية ","الجراند ",21,"فتحي فايز احمد ياسين ",null,987870714,4943542,"ف","ف",null,"غرفة ثلاثية"]
[101,"24-12-2019","طيران ",1,"دار خراز","المركزية ","الجراند ",22,"شهنا سليمان محمود ياسين ",null,987870722,4943543,"ف","ف",null,"غرفة ثلاثية"]
[101,"24-12-2019","طيران ",1,"دار خراز","المركزية ","الجراند ",23,"كوثر فتحي فايز عنبتاوي ",null,987870730,4943905,"ف","ف",null,"غرفة ثلاثية"]
[101,"24-12-2019","طيران ",1,"دار خراز","المركزية ","الجراند ",24,"فاتن عامر وجيه عفونه ",null,407645159,4941235,"ف","ف",null,"غرفة ثلاثية"]
[106,"31-12-2019","طيران ",2,"مجموعة ايناس الرام ","المركزية","دار الايمان جراند ",1,"مريم فتحي فايز عفونة ",null,987870763,4941249,"ف","ف ",null,"غرفة ثلاثية"]
[101,null,null,null,null,null,"dhh",1,"samir","hh",222,55,"ddd","23 فبراير 1900",null,"غرفه رباعية"]

{"sheet":"الرحلات","index":1,"n_rows":6,"n_cols":7,"rows_kept":6,"cut":false,"hidden":true,"merged":[]}
[]
["رقم الرحلة ","تاريخ الرحلة ","نوع الرحلة ","رقم الحافلة ","اسم المرشد ","فندق المدينة المنورة ","فندق مكة المكرمة "]
[101,"24-12-2019","طيران ",1,"دار خراز","المركزية ","الجراند "]
[104,"2020-01-01","VIP",1,null,"المركزية ","روضة البيت "]
[105,"31-12-2019","طيران ",1,"مجموعة الكومي ","المركزية","دار الايمان جراند"]
[106,"31-12-2019","طيران ",2,"مجموعة ايناس الرام ","المركزية","دار الايمان جراند "]

{"sheet":"فواتير","index":2,"n_rows":14,"n_cols":18,"rows_kept":14,"cut":false,"hidden":true,"merged":[]}
[]
["رقم الفاتورة","تحرر في","رقم الرحلة ","تاريخ الرحلة ","نوع الرحلة ","رقم الحافلة ","اسم المرشد ","فندق المدينة المنورة ","فندق مكة المكرمة ","القيمة","الكمية","السعر","البيان","ملاحظات","الخصم","الضريبة","الاجمالي","تكويد الفواتير"]
[1,"24/11/2019",101,"25-9-2018",101,1,"الايمان رويال ","الايمان رويال ",1,20,10,10,"البيان","ملاحظات","10","41","547","m"]
[1,"24/11/2019",101,"25-9-2018",101,1,"الايمان رويال ","الايمان رويال ",1,40,20,20,"البيان2","ملاحظات2","10","41","547","m"]
[1,"24/11/2019",101,"25-9-2018",101,1,"الايمان رويال ","الايمان رويال ",1,100,50,50,5,5,"10","41","547","m"]
[1,"24/11/2019",101,"25-9-2018",101,1,"الايمان رويال ","الايمان رويال ",1,120,60,60,6,6,"10","41","547","m"]
[1,"24/11/2019",101,"25-9-2018",101,1,"الايمان رويال ","الايمان رويال ",1,10,5,5,5,5,"10","41","547","m"]
[1,"24/11/2019",101,"25-9-2018",101,1,"الايمان رويال ","الايمان رويال ",1,12,6,6,6,6,"10","41","547","m"]
[1,"24/11/2019",101,"25-9-2018",101,1,"الايمان رويال ","الايمان رويال ",1,14,7,7,7,7,"10","41","547","m"]
[1,"24/11/2019",101,"25-9-2018",101,1,"الايمان رويال ","الايمان رويال ",1,16,8,8,8,8,"10","41","547","m"]
[1,"24/11/2019",101,"25-9-2018",101,1,"الايمان رويال ","الايمان رويال ",1,18,9,9,9,9,"10","41","547","m"]
[1,"24/11/2019",101,"25-9-2018",101,1,"الايمان رويال ","الايمان رويال ",1,20,10,10,10,10,"10","41","547","m"]
[1,"24/11/2019",101,"25-9-2018",101,1,"الايمان رويال ","الايمان رويال ",1,122,11,111,11,11,"10","41","547","m"]
[1,"24/11/2019",101,"25-9-2018",101,1,"الايمان رويال ","الايمان رويال ",1,24,12,12,12,12,"10","41","547","m"]

{"sheet":"تعريفات","index":3,"n_rows":25,"n_cols":4,"rows_kept":25,"cut":false,"hidden":true,"merged":[]}
["الشقق","حسب المعتمر","اسم المعتمر",101]
["غرفه رباعية","رجل","نمر علي نمر خليل "]
["غرفة ثلاثية","أمرأة","انشراح جبر سليمان خليل "]
["غرفة ثنائية","طفل","نصر الله علي عبد الغني اقطش"]
["التاشيرة فقط ",null,"عزيزه جودت عبد العزيز اقطش "]
["التاشيرة مع مقعد ",null,"سعيد حمدي محمد ابو مياله "]
["غرفه رباعية مشارك",null,"عبد الرحمن حمدي محمد ابو مياله "]
["غرفة خماسية ",null,"طه حمي محمد ابو مياله "]
["غرفه رباعية مشارك نساء",null,"جميله محمود علي ابو زعيتر"]
["غرفه رباعية مشارك رجال",null,"نجمه عيسى موسى ابو مياله "]
[null,null,"محي الدين حسن محمد عطاري "]
[null,null,"محاسن حسن محمد عطاري "]
[null,null,"نجمه حسن محمد كايد "]
[null,null,"هاله حسن محمد عطاري "]
[null,null,"محمد يوسف نجيب عوده "]
[null,null,"دلال هلال حسين بني شمسه "]
[null,null,"ضحى منذر عبد اللطيف بني شمسه "]
[null,null,"هلا منذر عبد اللطيف بني شمسه "]
[null,null,"منذر عبد اللطيف حسين بني شمسه "]
[null,null,"حامد سامر عثمان شرفه "]
[null,null,"عميد عامر وجيه عفونه "]
[null,null,"فتحي فايز احمد ياسين "]
[null,null,"شهنا سليمان محمود ياسين "]
[null,null,"كوثر فتحي فايز عنبتاوي "]
[null,null,"فاتن عامر وجيه عفونه "]

{"sheet":"التقرير","index":4,"n_rows":29,"n_cols":8,"rows_kept":29,"cut":false,"hidden":true,"merged":[[0,0,0,7],[1,0,1,7]]}
["شـــركة XXXXXXXXX"]
["كشف اسماء المعتمرين "]
[null,"رقم الرحلة","تاريخ الرحلة","نوع الرحلة","رقم الحافلة","اسم المرشد","فندق المدينة","فندق مكة"]
[null,101,"24-12-2019","طيران ",1,"دار خراز","المركزية ","الجراند "]
["م","الاسم","الجنسية","رقم الهوية","رقم الجواز","نوع الخدمة","المبيعات","ملاحظات"]
[1,"نمر علي نمر خليل ",null,904708666,4141349,"ف","ف"]
[2,"انشراح جبر سليمان خليل ",null,925062259,4430252,"ف","ف"]
[3,"نصر الله علي عبد الغني اقطش",null,911773208,4339622,"ف","ف"]
[4,"عزيزه جودت عبد العزيز اقطش ",null,907129860,4941012,"ف","ف"]
[5,"سعيد حمدي محمد ابو مياله ",null,null,"T303744","ف","ف"]
[6,"عبد الرحمن حمدي محمد ابو مياله ",null,null,"T1070336","ف","ف"]
[7,"طه حمي محمد ابو مياله ",null,null,"T1070416","ف","ف"]
[8,"جميله محمود علي ابو زعيتر",null,null,"T440341","ف","ف"]
[9,"نجمه عيسى موسى ابو مياله ",null,982063836,4849536,"ف","ف"]
[10,"محي الدين حسن محمد عطاري ",null,921602488,3731908,"ف","ف"]
[11,"محاسن حسن محمد عطاري ",null,903909281,4151305,"ف","ف"]
[12,"نجمه حسن محمد كايد ",null,953759578,4154303,"ف","ف"]
[13,"هاله حسن محمد عطاري ",null,null,"T365967","ف","ف"]
[14,"محمد يوسف نجيب عوده ",null,936548627,4343806,"ف","ف"]
[15,"دلال هلال حسين بني شمسه ",null,967807769,4941998,"ف","ف"]
[16,"ضحى منذر عبد اللطيف بني شمسه ",null,406414458,4941997,"ف","ف"]
[17,"هلا منذر عبد اللطيف بني شمسه ",null,422003848,49411999,"ف","ف"]
[18,"منذر عبد اللطيف حسين بني شمسه ",null,97470333,4940696,"ف","ق"]
[19,"حامد سامر عثمان شرفه ",null,854787777,3948460,"ف","ف"]
[20,"عميد عامر وجيه عفونه ",null,859894099,3758369,"ف","ف"]
[21,"فتحي فايز احمد ياسين ",null,987870714,4943542,"ف","ف"]
[22,"شهنا سليمان محمود ياسين ",null,987870722,4943543,"ف","ف"]
[23,"كوثر فتحي فايز عنبتاوي ",null,987870730,4943905,"ف","ف"]
[24,"فاتن عامر وجيه عفونه ",null,407645159,4941235,"ف","ف"]

{"sheet":"الدفعات","index":5,"n_rows":43,"n_cols":16,"rows_kept":43,"cut":false,"hidden":true,"merged":[[0,0,0,7],[1,0,1,7]]}
["شـــركة ريتاج",null,null,null,null,null,null,null,null,"رقم الرحلة","الاسم","رقم الهوية","تاريخ الدفعة","قيمة الدفعة","الرصيد المدفوع","ملاحظات"]
["كشف بدفعات المعتمرين ",null,null,null,null,null,null,null,null,101,"انشراح جبر سليمان خليل ",925062259]
["م","رقم الرحلة","الاسم","رقم الهوية","تاريخ الدفعة","قيمة الدفعة","الرصيد المدفوع","ملاحظات",null,"رقم الرحلة","الاسم","رقم الهوية","تاريخ الدفعة","قيمة الدفعة","الرصيد المدفوع","ملاحظات"]
[1,101,"نمر علي نمر خليل ",904708666,"2020-01-01",100,null,null,null,101,"انشراح جبر سليمان خليل ",925062259,"2020-01-02",200]
[2,101,"انشراح جبر سليمان خليل ",925062259,"2020-01-02",200,null,null,null,101,"انشراح جبر سليمان خليل ",925062259,"2020-01-11",100]
[3,101,"نصر الله علي عبد الغني اقطش",911773208,"2020-01-03",100,null,null,null,101,"انشراح جبر سليمان خليل ",925062259,"2020-01-28",150,200500]
[4,101,"عزيزه جودت عبد العزيز اقطش ",907129860,"2020-01-04",300,null,null,null,101,"انشراح جبر سليمان خليل ",925062259,"2020-01-29",100,200500]
[5,101,"سعيد حمدي محمد ابو مياله ",904708666,"2020-01-05",500,null,null,null,101,"انشراح جبر سليمان خليل ",925062259,"2020-01-30",200,200500]
[6,101,"نصر الله علي عبد الغني اقطش",911773208,"2020-01-06",100,null,null,null,101,"انشراح جبر سليمان خليل ",925062259,"2020-01-31",400,200500]
[7,101,"طه حمي محمد ابو مياله ",null,"2020-01-07",200,null,null,null,101,"انشراح جبر سليمان خليل ",925062259,"2020-02-01",500,200500]
[8,101,"جميله محمود علي ابو زعيتر",null,"2020-01-08",100,null,null,null,101,"انشراح جبر سليمان خليل ",925062259,"2020-02-02",120,200500]
[9,101,"نجمه عيسى موسى ابو مياله ",982063836,"2020-01-09",300,null,null,null,101,"انشراح جبر سليمان خليل ",925062259,"2020-02-03",130,200500]
[10,101,"محي الدين حسن محمد عطاري ",921602488,"2020-01-10",500,null,null,null,101,"انشراح جبر سليمان خليل ",925062259,"2020-02-04",140,200500]
[11,101,"انشراح جبر سليمان خليل ",925062259,"2020-01-11",100,null,null,null,101,"انشراح جبر سليمان خليل ",925062259,"2020-02-05",150,200500]
[12,101,"نجمه حسن محمد كايد ",953759578,"2020-01-12",200,null,null,null,101,"انشراح جبر سليمان خليل ",925062259,"2020-02-06",160,200500]
[13,101,"هاله حسن محمد عطاري ",null,"2020-01-13",100,null,null,null,101,"انشراح جبر سليمان خليل ",925062259,"2020-02-07",170,200500]
[14,101,"محمد يوسف نجيب عوده ",936548627,"2020-01-14",300,null,null,null,101,"انشراح جبر سليمان خليل ",925062259,"2020-02-08",180,200500]
[15,101,"دلال هلال حسين بني شمسه ",967807769,"2020-01-15",500,null,null,null,null,null,null,"الاجمالي",2700]
[16,102,"ضحى منذر عبد اللطيف بني شمسه ",406414458,"2020-01-16",100]
[17,102,"هلا منذر عبد اللطيف بني شمسه ",422003848,"2020-01-17",200]
[18,102,"منذر عبد اللطيف حسين بني شمسه ",97470333,"2020-01-18",100]
[19,102,"حامد سامر عثمان شرفه ",854787777,"2020-01-19",300]
[20,102,"عميد عامر وجيه عفونه ",859894099,"2020-01-20",500]
[21,102,"فتحي فايز احمد ياسين ",987870714,"2020-01-21",100]
[22,102,"شهنا سليمان محمود ياسين ",987870722,"2020-01-22",200]
[23,102,"كوثر فتحي فايز عنبتاوي ",987870730,"2020-01-23",100]
[24,102,"فاتن عامر وجيه عفونه ",407645159,"2020-01-24",300]
[25,101,"سعيد حمدي محمد ابو مياله ",9000,"20-7-2020",1500,1500]
[26,105,"حمزه جمال محمد الكومي ",427415401,"2020-01-26",8000,8000]
[27,102,"رلاليلايبلايبئ",25725727,"2020-01-27",5000,5000]
[28,101,"انشراح جبر سليمان خليل ",925062259,"2020-01-28",150,200500]
[29,101,"انشراح جبر سليمان خليل ",925062259,"2020-01-29",100,200500]
[30,101,"انشراح جبر سليمان خليل ",925062259,"2020-01-30",200,200500]
[31,101,"انشراح جبر سليمان خليل ",925062259,"2020-01-31",400,200500]
[32,101,"انشراح جبر سليمان خليل ",925062259,"2020-02-01",500,200500]
[33,101,"انشراح جبر سليمان خليل ",925062259,"2020-02-02",120,200500]
[34,101,"انشراح جبر سليمان خليل ",925062259,"2020-02-03",130,200500]
[35,101,"انشراح جبر سليمان خليل ",925062259,"2020-02-04",140,200500]
[36,101,"انشراح جبر سليمان خليل ",925062259,"2020-02-05",150,200500]
[37,101,"انشراح جبر سليمان خليل ",925062259,"2020-02-06",160,200500]
[38,101,"انشراح جبر سليمان خليل ",925062259,"2020-02-07",170,200500]
[39,101,"انشراح جبر سليمان خليل ",925062259,"2020-02-08",180,200500]
[40,106,"ايناس عبدالحليم عيسى مصلح",944573112,"20-7-2020",10000,{"$f":"SUMPRODUCT(($D$4:D43=D43)*$F$4:F43)","v":10000}]

{"sheet":"Invoice","index":6,"n_rows":69,"n_cols":25,"rows_kept":69,"cut":false,"hidden":false,"merged":[[6,1,6,2]]}
[null,null,"شركة ريتاج"]
[]
[]
[]
[]
[]
[null,null,null,"رقم الرحلة",106]
[null,null,"التاريخ ","2020-03-01","فندق المدينة "]
[null,null,"نوع الرحلة ","VIP","رقم الحافلة ",3]
[]
[null,"#","الغرفة الثنائية ","الغرفة الثلاثية ","الغرفة الرباعية ","الغرفة الخماسية ","الغرفة السداسية",null,null,null,null,"نوع الغرفة"]
[]
[null,{"$f":"IF(COUNTA($C13:$G13)=0,\"\",MAX($B$12:B12)+1)","v":1},"ايناس عبدالحليم عيسى مصلح","هيا عبدالحليم عيسى حموده","ايه مازن مصطفى غزاونه","مريم عيسى عبد الجبار ابو زاهريه","عيسى عبدالحليم عيسى غزاونه",null,1,"ايناس عبدالحليم عيسى مصلح",null,2,null,null,null,null,null,null,null,null,null,null,null,null,"kl"]
[null,{"$f":"IF(COUNTA($C14:$G14)=0,\"\",MAX($B$12:B13)+1)","v":2},"امل اراهيم حمدان خطاب","هيام ابراهيم حمدان غزاونه ","باسل انور شفيق عبد الحق","مريم فتحي فايز عفونة ","منتهى عبدالحليم عيسى حجازي",null,2,"عيسى عبدالحليم عيسى غزاونه",null,6]
[null,{"$f":"IF(COUNTA($C15:$G15)=0,\"\",MAX($B$12:B14)+1)","v":""},null,null,null,null,null,null,3,"هيا عبدالحليم عيسى حموده",null,3]
[null,{"$f":"IF(COUNTA($C16:$G16)=0,\"\",MAX($B$12:B15)+1)","v":""},null,null,null,null,null,null,4,"منتهى عبدالحليم عيسى حجازي",null,6]
[null,{"$f":"IF(COUNTA($C17:$G17)=0,\"\",MAX($B$12:B16)+1)","v":""},null,null,null,null,null,null,5,"ايه مازن مصطفى غزاونه",null,4]
[null,{"$f":"IF(COUNTA($C18:$G18)=0,\"\",MAX($B$12:B17)+1)","v":""},null,null,null,null,null,null,6,"باسل انور شفيق عبد الحق",null,4]
[null,{"$f":"IF(COUNTA($C19:$G19)=0,\"\",MAX($B$12:B18)+1)","v":""},null,null,null,null,null,null,7,"هيام ابراهيم حمدان غزاونه ",null,3]
[null,{"$f":"IF(COUNTA($C20:$G20)=0,\"\",MAX($B$12:B19)+1)","v":""},null,null,null,null,null,null,8,"امل اراهيم حمدان خطاب",null,2]
[null,{"$f":"IF(COUNTA($C21:$G21)=0,\"\",MAX($B$12:B20)+1)","v":""},null,null,null,null,null,null,9,"مريم عيسى عبد الجبار ابو زاهريه",null,5]
[null,{"$f":"IF(COUNTA($C22:$G22)=0,\"\",MAX($B$12:B21)+1)","v":""},null,null,null,null,null,null,10,"مريم فتحي فايز عفونة ",null,5]
[null,{"$f":"IF(COUNTA($C23:$G23)=0,\"\",MAX($B$12:B22)+1)","v":""},null,null,null,null,null,null,null,null,null,6]
[null,{"$f":"IF(COUNTA($C24:$G24)=0,\"\",MAX($B$12:B23)+1)","v":""},null,null,null,null,null,null,null,null,null,3]
[null,{"$f":"IF(COUNTA($C25:$G25)=0,\"\",MAX($B$12:B24)+1)","v":""},null,null,null,null,null,null,null,null,null,6]
[null,{"$f":"IF(COUNTA($C26:$G26)=0,\"\",MAX($B$12:B25)+1)","v":""},null,null,null,null,null,null,null,null,null,4]
[null,{"$f":"IF(COUNTA($C27:$G27)=0,\"\",MAX($B$12:B26)+1)","v":""},null,null,null,null,null,null,null,null,null,3]
[null,{"$f":"IF(COUNTA($C28:$G28)=0,\"\",MAX($B$12:B27)+1)","v":""},null,null,null,null,null,null,null,null,null,3]
[null,{"$f":"IF(COUNTA($C29:$G29)=0,\"\",MAX($B$12:B28)+1)","v":""},null,null,null,null,null,null,null,null,null,4]
[null,{"$f":"IF(COUNTA($C30:$G30)=0,\"\",MAX($B$12:B29)+1)","v":""},null,null,null,null,null,null,null,null,null,6]
[null,{"$f":"IF(COUNTA($C31:$G31)=0,\"\",MAX($B$12:B30)+1)","v":""},null,null,null,null,null,null,null,null,null,2]
[null,{"$f":"IF(COUNTA($C32:$G32)=0,\"\",MAX($B$12:B31)+1)","v":""},null,null,null,null,null,null,null,null,null,3]
[null,null,null,null,null,null,null,null,null,null,null,2]
[null,null,null,null,null,null,null,null,null,null,null,4]
[null,null,null,null,null,null,null,null,null,null,null,2]
[null,null,null,null,null,null,null,null,null,null,null,6]
[null,null,null,null,null,null,null,null,null,null,null,5]
[null,null,null,null,null,null,null,null,null,null,null,3]
[null,null,null,null,null,null,null,null,null,null,null,5]
[null,null,null,null,null,null,null,null,null,null,null,2]
[null,null,null,null,null,null,null,null,null,null,null,6]
[null,null,null,null,null,null,null,null,null,null,null,2]
[null,null,null,null,null,null,null,null,null,null,null,3]
[null,null,null,null,null,null,null,null,null,null,null,6]
[null,null,null,null,null,null,null,null,null,null,null,3]
[null,null,null,null,null,null,null,null,null,null,null,5]
[null,null,null,null,null,null,null,null,null,null,null,6]
[null,null,null,null,null,null,null,null,null,null,null,4]
[null,null,null,null,null,null,null,null,null,null,null,3]
[null,null,null,null,null,null,null,null,null,null,null,4]
[null,null,null,null,null,null,null,null,null,null,null,4]
[null,null,null,null,null,null,null,null,null,null,null,5]
[null,null,null,null,null,null,null,null,null,null,null,5]
[null,null,null,null,null,null,null,null,null,null,null,6]
[null,null,null,null,null,null,null,null,null,null,null,3]
[null,null,null,null,null,null,null,null,null,null,null,4]
[null,null,null,null,null,null,null,null,null,null,null,6]
[null,null,null,null,null,null,null,null,null,null,null,3]
[null,null,null,null,null,null,null,null,null,null,null,2]
[null,null,null,null,null,null,null,null,null,null,null,5]
[null,null,null,null,null,null,null,null,null,null,null,2]
[null,null,null,null,null,null,null,null,null,null,null,3]
[null,null,null,null,null,null,null,null,null,null,null,4]
[null,null,null,null,null,null,null,null,null,null,null,6]
[null,null,null,null,null,null,null,null,null,null,null,3]
[null,null,null,null,null,null,null,null,null,null,null,6]
[null,null,null,null,null,null,null,null,null,null,null,6]
[null,null,null,null,null,null,null,null,null,null,null,5]
[null,null,null,null,null,null,null,null,null,null,null,6]

{"sheet":"Data","index":7,"n_rows":14,"n_cols":11,"rows_kept":14,"cut":false,"hidden":false,"merged":[]}
[]
[]
[null,"رقم الرحلة  ","تاريخ الرحلة ","نوع الرحلة ","رقم الحافلة ","اسم المرشد ","الغرفة الثنائية ","الغرفة الثلاثية ","الغرفة الرباعية ","الغرفة الخماسية ","التاشيرة "]
[null,105,"2020-03-01","VIP",3,null,"حمزه جمال محمد الكومي ","اية جمال محمد الكومي ","عبير محمد شاكر احمد الكومي ",null,"محمد جمال محمد الكومي "]
[null,105,"2020-03-01","VIP",3,null,"ملاك جمال محمد الكومي ",null,"جمال محمد حسن الكومي ",null,"اسامه جمال محمد الكومي "]
[null,105,"2020-03-01","VIP",3,null,"ابراهيم جمال محمد الكومي "]
[null,101,"2020-03-01","VIP",3,null,"نمر علي نمر خليل ","نصر الله علي عبد الغني اقطش","سعيد حمدي محمد ابو مياله ","نجمه عيسى موسى ابو مياله ","انشراح جبر سليمان خليل "]
[null,101,"2020-03-01","VIP",3,null,"جميله محمود علي ابو زعيتر","طه حمي محمد ابو مياله ","عبد الرحمن حمدي محمد ابو مياله ","محي الدين حسن محمد عطاري ","عزيزه جودت عبد العزيز اقطش "]
[null,101,"2020-03-01","VIP",3,null,"حامد سامر عثمان شرفه ","نجمه حسن محمد كايد ","محمد يوسف نجيب عوده ","samir","محاسن حسن محمد عطاري "]
[null,101,"2020-03-01","VIP",3,null,"فتحي فايز احمد ياسين ","دلال هلال حسين بني شمسه ","هلا منذر عبد اللطيف بني شمسه ",null,"هاله حسن محمد عطاري "]
[null,101,"2020-03-01","VIP",3,null,"كوثر فتحي فايز عنبتاوي ","ضحى منذر عبد اللطيف بني شمسه ","شهنا سليمان محمود ياسين ",null,"منذر عبد اللطيف حسين بني شمسه "]
[null,101,"2020-03-01","VIP",3,null,null,"عميد عامر وجيه عفونه ",null,null,"فاتن عامر وجيه عفونه "]
[null,106,"2020-03-01","VIP",3,null,"ايناس عبدالحليم عيسى مصلح","هيا عبدالحليم عيسى حموده","ايه مازن مصطفى غزاونه","مريم عيسى عبد الجبار ابو زاهريه","عيسى عبدالحليم عيسى غزاونه"]
[null,106,"2020-03-01","VIP",3,null,"امل اراهيم حمدان خطاب","هيام ابراهيم حمدان غزاونه ","باسل انور شفيق عبد الحق","مريم فتحي فايز عفونة ","منتهى عبدالحليم عيسى حجازي"]